fUST/lending_fUST_20250518
["ID","MTS","AMOUNT","RATE_DAILY","PERIOD"]
[361415538,1747560642469,-450.0,0.00015479,2]
[361415540,1747560642479,-450.0,0.00015479,2]
[361415542,1747560642489,-220.71,0.00015479,2]
[361415544,1747560642499,-450.0,0.00015479,2]
[361415546,1747560642508,-934.97,0.00015479,2]
[361415547,1747560642518,-300.0,0.0001556,2]
[361415549,1747560642527,-587.28,0.00015616,2]
[361415551,1747560642536,-726.8,0.00015616,2]
[361415553,1747560642546,-501.14,0.00015616,2]
[361415554,1747560642555,-450.0,0.00015616,2]
[361415555,1747560642564,-450.0,0.00015616,2]
[361415556,1747560642574,-556.62,0.00015616,2]
[361415557,1747560642584,-995.88,0.00015616,2]
[361415558,1747560642593,-774.66,0.00015616,2]
[361415559,1747560642603,-450.0,0.00015616,2]
[361415560,1747560642612,-450.0,0.00015616,2]
[361415561,1747560642622,-450.0,0.00015616,2]
[361415562,1747560642632,-934.97,0.00015616,2]
[361415563,1747560642642,-587.28,0.00015753,2]
[361415564,1747560642652,-726.8,0.00015753,2]
[361415565,1747560642661,-501.14,0.00015753,2]
[361415566,1747560642671,-524.68,0.00015753,2]
[361415567,1747560642681,-299.22,0.00015753,2]
[361415569,1747560642691,-556.62,0.00015753,2]
[361415571,1747560642700,-995.88,0.00015753,2]
[361415572,1747560642710,-774.66,0.00015753,2]
[361415573,1747560642719,-450.0,0.00015753,2]
[361415574,1747560642729,-450.0,0.00015753,2]
[361415575,1747560642739,-450.0,0.00015753,2]
[361415577,1747560642748,-934.97,0.00015753,2]
[361415579,1747560642758,-12221.90738307,0.00015797,2]
[361415581,1747560642768,-587.28,0.0001589,2]
[361415583,1747560642778,-726.8,0.0001589,2]
[361415585,1747560642788,-501.14,0.0001589,2]
[361415587,1747560642798,-556.62,0.0001589,2]
[361415590,1747560642808,-995.88,0.0001589,2]
[361415592,1747560642818,-774.66,0.0001589,2]
[361415594,1747560642829,-450.0,0.0001589,2]
[361415595,1747560642838,-450.0,0.0001589,2]
[361415596,1747560642848,-175.56,0.0001589,2]
[361415597,1747560642858,-934.97,0.0001589,2]
[361415599,1747560642868,-587.28,0.00016027,2]
[361415601,1747560642877,-726.8,0.00016027,2]
[361415602,1747560642888,-501.14,0.00016027,2]
[361415604,1747560642897,-556.62,0.00016027,2]
[361415606,1747560642907,-995.88,0.00016027,2]
[361415608,1747560642917,-774.66,0.00016027,2]
[361415609,1747560642927,-450.0,0.00016027,2]
[361415610,1747560642937,-450.0,0.00016027,2]
[361415612,1747560642947,-151.0,0.00016027,2]
[361415613,1747560642956,-934.97,0.00016027,2]
[361415615,1747560642966,-2236.0,0.00016041,2]
[361415617,1747560642976,-707.0,0.00016041,2]
[361415618,1747560642985,-404.0,0.00016041,2]
[361415619,1747560642996,-587.28,0.00016164,2]
[361415620,1747560643005,-726.8,0.00016164,2]
[361415621,1747560643015,-500.0,0.00016164,2]
[361415622,1747560643025,-500.0,0.00016164,2]
[361415623,1747560643034,-534.48032442,0.00016164,2]
[361415624,1747560643044,-500.0,0.00016164,2]
[361415625,1747560643054,-500.0,0.00016164,2]
[361415626,1747560643063,-500.0,0.00016164,2]
[361415627,1747560643074,-500.0,0.00016164,2]
[361415628,1747560643083,-500.0,0.00016164,2]
[361415629,1747560643093,-500.0,0.00016164,2]
[361415630,1747560643103,-501.14,0.00016164,2]
[361415631,1747560643113,-556.62,0.00016164,2]
[361415632,1747560643233,-995.88,0.00016164,2]
[361415633,1747560643244,-774.66,0.00016164,2]
[361415634,1747560643254,-386.1,0.00016164,2]
[361415635,1747560643263,-450.0,0.00016164,2]
[361415636,1747560643273,-151.0,0.00016164,2]
[361415637,1747560643283,-934.97,0.00016164,2]
[361415638,1747560643292,-12221.90738307,0.00016176,2]
[361415639,1747560643302,-587.28,0.00016301,2]
[361415640,1747560643311,-726.8,0.00016301,2]
[361415641,1747560643321,-501.14,0.00016301,2]
[361415642,1747560643331,-556.62,0.00016301,2]
[361415643,1747560643340,-995.88,0.00016301,2]
[361415644,1747560643350,-774.66,0.00016301,2]
[361415645,1747560643360,-175.88,0.00016301,2]
[361415646,1747560643370,-934.97,0.00016301,2]
[361415647,1747560643379,-13514.4531641,0.000164,2]
[361415648,1747560643389,-151.0,0.000164,2]
[361415649,1747560643399,-587.28,0.00016438,2]
[361415650,1747560643408,-726.8,0.00016438,2]
[361415651,1747560643418,-501.14,0.00016438,2]
[361415652,1747560643427,-556.62,0.00016438,2]
[361415653,1747560643438,-995.88,0.00016438,2]
[361415654,1747560643448,-774.66,0.00016438,2]
[361415655,1747560643457,-934.97,0.00016438,2]
[361415656,1747560643467,-250.0,0.00016439,2]
[361415657,1747560643476,-485.28987041,0.00016545,2]
[361415658,1747560643485,-12221.90738307,0.00016555,2]
[361415659,1747560643495,-587.28,0.00016575,2]
[361415660,1747560643504,-726.8,0.00016575,2]
[361415661,1747560643513,-501.14,0.00016575,2]
[361415662,1747560643523,-556.62,0.00016575,2]
[361415663,1747560643533,-995.88,0.00016575,2]
[361415664,1747560643542,-774.66,0.00016575,2]
[361415665,1747560643551,-934.97,0.00016575,2]
[361415666,1747560643560,-240.405,0.00016712,2]
[361415667,1747560643570,-587.28,0.00016712,2]
[361415668,1747560643579,-726.8,0.00016712,2]
[361415669,1747560643588,-501.14,0.00016712,2]
[361415670,1747560643597,-556.62,0.00016712,2]
[361415671,1747560643606,-995.88,0.00016712,2]
[361415672,1747560643615,-774.66,0.00016712,2]
[361415673,1747560643624,-934.97,0.00016712,2]
[361415674,1747560643634,-397.96844421,0.0001679,2]
[361415675,1747560643643,-151.0,0.000168,2]
[361415676,1747560643653,-151.0,0.00016849,2]
[361415677,1747560643662,-587.32233179,0.00016849,2]
[361415678,1747560643671,-726.92,0.00016849,2]
[361415679,1747560643680,-501.28,0.00016849,2]
[361415680,1747560643690,-556.84,0.00016849,2]
[361415681,1747560643700,-995.9092,0.00016849,2]
[361415682,1747560643709,-774.72,0.00016849,2]
[361415683,1747560643718,-935.18683648,0.00016849,2]
[361415684,1747560643728,-12221.90738307,0.00016934,2]
[361415685,1747560643737,-151.0,0.00016935,2]
[361415686,1747560643747,-151.0,0.00016935,2]
[361415687,1747560643757,-151.0,0.00016935,2]
[361415688,1747560643767,-156.933471,0.00016967,3]
[361415689,1747560643776,-2590.15778748,0.00017,2]
[361415690,1747560643785,-12221.90738307,0.00017314,2]
[361415691,1747560643795,-156.933471,0.00017396,3]
[361415692,1747560643804,-362.8590213,0.00017425,2]
[361415693,1747560643813,-156.933471,0.00017452,7]
[361415694,1747560643823,-500.0,0.000175,5]
[361415695,1747560643833,-151.0,0.000175,2]
[361415696,1747560643842,-151.847228,0.00017659,2]
[361415697,1747560643852,-12221.90738307,0.00017693,2]
[361415698,1747560643861,-500.0,0.000178,5]
[361415699,1747560643870,-500.0,0.000179,5]
[361415700,1747560643879,-157.636583,0.00018,7]
[361415701,1747560643889,-2203.059,0.00018019,2]
[361415702,1747560643899,-12221.90738307,0.00018072,2]
[361415703,1747560643908,-151.0,0.000181,2]
[361415704,1747560643918,-500.0,0.000182,5]
[361415705,1747560643928,-397.96844421,0.00018387,2]
[361415706,1747560643937,-12221.90738307,0.00018452,2]
[361415707,1747560643947,-204.918062,0.00018452,2]
[361415708,1747560643956,-157.636583,0.00018497,3]
[361415709,1747560643965,-151.0,0.000187,2]
[361415710,1747560643975,-3000.0,0.00018716,2]
[361415711,1747560643984,-160.0,0.0001873,3]
[361415712,1747560643994,-151.0,0.00018831,2]
[361415713,1747560644003,-12221.90738307,0.00018831,2]
[361415714,1747560644012,-7879.55877963,0.000189,2]
[361415715,1747560644022,-832.0,0.00019,5]
[361415716,1747560644031,-1138.00934835,0.00019104,2]
[361415717,1747560644041,-155.0,0.00019178,2]
[361415718,1747560644050,-684.77322,0.00019178,2]
[361415719,1747560644059,-232.32778591,0.00019178,3]
[361415720,1747560644068,-12221.90738307,0.0001921,2]
[361415721,1747560644077,-1572.6325354,0.0001923,2]
[361415722,1747560644086,-236.51228779,0.00019328,2]
[361415723,1747560644096,-500.0,0.00019328,2]
[361415724,1747560644106,-153.527194,0.00019329,2]
[361415725,1747560644115,-151.0,0.00019329,2]
[361415726,1747560644125,-151.0,0.00019329,2]
[361415727,1747560644134,-157.636583,0.00019329,3]
[361415728,1747560644143,-100000.0,0.00019329,2]
[361415729,1747560644152,-151.0,0.000194,2]
[361415730,1747560644162,-1802.636754,0.0001958,2]
[361415731,1747560644171,-12221.90738307,0.0001959,2]
[361415732,1747560644180,-156.933471,0.0001971,2]
[361415734,1747560644195,-13545.95750165,0.000198,2]
[361415736,1747560644206,-151.0,0.000198,2]
[361415738,1747560644216,-3000.0,0.00019812,2]
[361415740,1747560644226,-180644.5249455,0.00019888,2]
[361415753,1747560644343,-1038.74006061,0.00019888,2]
[361415775,1747560644544,-677.10053554,0.00019888,2]
[361415777,1747560644558,-6608.7482034,0.00019888,2]
[361415782,1747560644596,-531.10730734,0.00019888,2]
[361415784,1747560644607,-49640.00979222,0.00019888,2]
[361415802,1747560644773,-546.0,0.00016041,2]
[361415804,1747560644785,-485.28987041,0.00016599,2]
[361415806,1747560644795,-908.30931073,0.00019888,2]
[361415809,1747560644807,-23372.94174757,0.00019888,2]
[361415812,1747560644830,-44958.6573466,0.00019888,2]
[361415984,1747560646504,-8609.0475658,0.00019888,2]
[361415987,1747560646519,-16394.34701892,0.00019888,2]
[361419437,1747561838338,-300.0,0.0001329,2]
[361419438,1747561838350,-180.0,0.00013696,2]
[361419439,1747561838359,-300.0,0.00013697,2]
[361419440,1747561838369,-300.0,0.00013697,2]
[361419441,1747561838378,-300.0,0.00013697,2]
[361419442,1747561838388,-1200.0,0.00013697,2]
[361419443,1747561838398,-450.0,0.00013698,2]
[361419444,1747561838407,-450.0,0.00013698,2]
[361419445,1747561838416,-450.0,0.00013698,2]
[361419446,1747561838425,-450.0,0.00013698,2]
[361419447,1747561838435,-450.0,0.00013698,2]
[361419448,1747561838445,-450.0,0.00013698,2]
[361419449,1747561838454,-450.0,0.00013698,2]
[361419450,1747561838464,-273.29394,0.00013699,2]
[361419451,1747561838474,-450.0,0.00013835,2]
[361419452,1747561838483,-450.0,0.00013972,2]
[361419453,1747561838493,-160.0,0.00014075,2]
[361419454,1747561838503,-212.32903618,0.00014075,2]
[361419455,1747561838513,-160.0,0.00014075,2]
[361419456,1747561838522,-422.53311782,0.00014547,2]
[361419457,1747561838532,-997.62939563,0.00014552,2]
[361419458,1747561838543,-5703.55677894,0.000149,2]
[361419459,1747561838552,-420.0,0.0001501,2]
[361419460,1747561838562,-5703.55677876,0.00015245,2]
[361419461,1747561838571,-5703.55677876,0.0001559,2]
[361419462,1747561838582,-2614.25713197,0.00015934,2]
[361419847,1747561844449,-3089.29964679,0.00015934,2]
[361419849,1747561844458,-150.463,0.00016143,2]
[361419851,1747561844467,-198.98422214,0.00016178,2]
[361419853,1747561844476,-181.23584675,0.00016278,2]
[361419855,1747561844486,-622.37495554,0.00016278,2]
[361419857,1747561844495,-500.0,0.00016278,2]
[361419859,1747561844504,-506.4330738,0.00016278,2]
[361419861,1747561844514,-489.69932286,0.00016278,2]
[361419863,1747561844523,-363.12708461,0.00016278,2]
[361419865,1747561844532,-5703.55677876,0.00016279,2]
[361419867,1747561844541,-180.0,0.0001645,2]
[361419869,1747561844552,-5703.55677876,0.00016624,2]
[361419871,1747561844561,-192.324,0.00016934,2]
[361419873,1747561844570,-5703.55677876,0.00016969,2]
[361419875,1747561844579,-5703.55677876,0.00017314,2]
[361419877,1747561844588,-198.9842221,0.00017395,2]
[361419879,1747561844597,-5703.55677876,0.00017659,2]
[361419881,1747561844607,-5703.55677876,0.00018003,2]
[361419883,1747561844618,-5703.55677876,0.00018348,2]
[361419885,1747561844628,-198.9842221,0.00018613,2]
[361419889,1747561844638,-5703.55677876,0.00018693,2]
[361419893,1747561844648,-2900.0,0.00018716,2]
[361419896,1747561844657,-160.0,0.0001873,3]
[361419898,1747561844667,-5253.03918642,0.000189,2]
[361419900,1747561844676,-176.9129096,0.00018907,2]
[361419902,1747561844685,-5000.0,0.00019,2]
[361419904,1747561844695,-5002.0,0.00019,2]
[361419906,1747561844704,-157.636584,0.00019,5]
[361419907,1747561844713,-1169.63632168,0.00019038,2]
[361423198,1747562446319,-1000.0,0.00012205,2]
[361423199,1747562582483,-129.77,0.00012205,2]
[361423200,1747562582505,-13943.23,0.00012252,2]
[361423201,1747562652082,-250.0,0.00012128,2]
[361423248,1747563032601,-155.0,0.00011868,2]
[361423249,1747563032611,-463.1576437,0.0001191,2]
[361423250,1747563032621,-284.5264527,0.00012108,2]
[361423251,1747563032630,-155.0,0.00012109,2]
[361423252,1747563032640,-1200.0,0.00012127,2]
[361423253,1747563032649,-300.0,0.00012251,2]
[361423254,1747563032658,-300.0,0.00012251,2]
[361423255,1747563032667,-300.0,0.00012251,2]
[361423256,1747563032676,-300.0,0.00012251,2]
[361423257,1747563032685,-6693.26806917,0.00012252,2]
[361423258,1747563032697,-4263.50193083,0.00012252,2]
[361423259,1747563032706,-314.81,0.00012329,2]
[361423260,1747563032715,-262.34,0.00012329,2]
[361423261,1747563032725,-218.62,0.00012329,2]
[361423262,1747563032734,-182.18,0.00012329,2]
[361423263,1747563032744,-151.82,0.00012329,2]
[361423264,1747563032753,-759.13,0.00012329,2]
[361423265,1747563032763,-370.17083156,0.00012695,2]
[361423266,1747563032772,-5000.0,0.00013105,2]
[361423267,1747563032781,-1680.0,0.0001334,2]
[361423268,1747563032791,-300.0,0.00013445,2]
[361423269,1747563032800,-420.0,0.00013445,2]
[361423270,1747563032811,-420.0,0.00013445,2]
[361423271,1747563032820,-344.4739246,0.00013573,2]
[361423272,1747563032829,-4451.65972751,0.00013598,2]
[361423273,1747563032839,-228.90421741,0.00013672,2]
[361423274,1747563032849,-500.0,0.00013672,2]
[361423276,1747563032858,-500.0,0.00013672,2]
[361423278,1747563032867,-500.0,0.00013672,2]
[361423280,1747563032876,-500.0,0.00013672,2]
[361423282,1747563032885,-500.0,0.00013672,2]
[361423284,1747563032895,-491.55498854,0.00013672,2]
[361423286,1747563032904,-500.0,0.00013672,2]
[361423288,1747563032913,-500.0,0.00013672,2]
[361423290,1747563032922,-500.0,0.00013672,2]
[361423292,1747563032931,-500.0,0.00013672,2]
[361423294,1747563032941,-500.0,0.00013672,2]
[361423296,1747563032949,-520.16409903,0.00013673,2]
[361423298,1747563032959,-216.02164005,0.00013673,2]
[361423304,1747563033005,-500.0,0.00013672,2]
[361423306,1747563033015,-500.0,0.00013672,2]
[361423308,1747563033024,-70.89928978,0.00013672,2]
[361423310,1747563033036,-429.10071022,0.00013672,2]
[361423312,1747563033045,-285.67848259,0.00013673,2]
[361423314,1747563033055,-500.0,0.00013673,2]
[361423316,1747563033065,-500.0,0.00013673,2]
[361423320,1747563033085,-500.0,0.00013673,2]
[361423322,1747563033095,-500.0,0.00013673,2]
[361423324,1747563033104,-500.0,0.00013673,2]
[361423326,1747563033114,-500.0,0.00013673,2]
[361423328,1747563033124,-484.72080219,0.00013673,2]
[361423330,1747563033136,-19.46077523,0.00013673,2]
[361423332,1747563033146,-339.88294557,0.00013673,2]
[361423505,1747563038484,-500.0,0.00013672,2]
[361423507,1747563038495,-500.0,0.00013672,2]
[361423509,1747563038505,-500.0,0.00013672,2]
[361423511,1747563038514,-500.0,0.00013672,2]
[361423513,1747563038523,-280.05612358,0.00013672,2]
[361423515,1747563038532,-482.9912,0.00013672,2]
[361423517,1747563038544,-500.0,0.00013672,2]
[361423519,1747563038553,-500.0,0.00013672,2]
[361423521,1747563038563,-500.0,0.00013672,2]
[361423523,1747563038572,-160.11705443,0.00013673,2]
[361423539,1747563038732,-500.0,0.00013673,2]
[361423542,1747563038745,-502.53897078,0.00013673,2]
[361423544,1747563038754,-427.51351742,0.00013673,2]
[361423546,1747563038764,-500.0,0.00013673,2]
[361423548,1747563038773,-500.0,0.00013673,2]
[361423550,1747563038782,-500.0,0.00013673,2]
[361423552,1747563038791,-500.0,0.00013673,2]
[361423554,1747563038800,-500.0,0.00013673,2]
[361423556,1747563038809,-500.0,0.00013673,2]
[361423558,1747563038819,-500.0,0.00013673,2]
[361423560,1747563038828,-500.0,0.00013673,2]
[361423562,1747563038837,-152.0,0.00013693,2]
[361423564,1747563038847,-447.99994809,0.00013698,2]
[361423566,1747563038856,-400.0,0.00013698,2]
[361423568,1747563038866,-400.0,0.00013698,2]
[361423570,1747563038875,-401.17204893,0.00013698,2]
[361423572,1747563038885,-450.0,0.00013698,2]
[361423574,1747563038894,-450.0,0.00013698,2]
[361423576,1747563038902,-450.0,0.00013698,2]
[361423578,1747563038912,-450.0,0.00013698,2]
[361423580,1747563038921,-450.0,0.00013698,2]
[361423582,1747563038930,-419.30115141,0.00013698,2]
[361423584,1747563038939,-450.0,0.00013698,2]
[361423586,1747563038950,-400.0,0.00013698,2]
[361423588,1747563038959,-450.0,0.00013698,2]
[361423590,1747563038968,-450.0,0.00013698,2]
[361423592,1747563038977,-400.00000001,0.00013698,2]
[361423594,1747563038987,-400.0,0.00013698,2]
[361423596,1747563038996,-450.0,0.00013698,2]
[361423598,1747563039005,-400.0,0.00013698,2]
[361423600,1747563039015,-450.0,0.00013698,2]
[361423602,1747563039024,-450.0,0.00013698,2]
[361423604,1747563039033,-450.0,0.00013698,2]
[361423606,1747563039042,-450.0,0.00013698,2]
[361423608,1747563039051,-450.0,0.00013698,2]
[361423610,1747563039060,-450.0,0.00013698,2]
[361423612,1747563039069,-450.0,0.00013698,2]
[361423614,1747563039078,-450.0,0.00013698,2]
[361423616,1747563039087,-450.0,0.00013698,2]
[361423618,1747563039096,-310.86223979,0.00013698,2]
[361423620,1747563039105,-400.0,0.00013698,2]
[361423622,1747563039114,-400.0,0.00013698,2]
[361423624,1747563039123,-450.0,0.00013698,2]
[361423626,1747563039132,-400.0,0.00013698,2]
[361423628,1747563039141,-400.0,0.00013698,2]
[361423630,1747563039150,-450.0,0.00013698,2]
[361423632,1747563039159,-400.0,0.00013698,2]
[361423634,1747563039168,-450.0,0.00013698,2]
[361423636,1747563039177,-400.0,0.00013698,2]
[361423638,1747563039185,-450.0,0.00013698,2]
[361423639,1747563039194,-400.0,0.00013698,2]
[361423641,1747563039203,-400.0,0.00013698,2]
[361423643,1747563039212,-428.63117572,0.00013698,2]
[361423645,1747563039221,-450.0,0.00013698,2]
[361423647,1747563039230,-450.0,0.00013698,2]
[361423649,1747563039239,-450.0,0.00013698,2]
[361423651,1747563039249,-400.0,0.00013698,2]
[361423653,1747563039258,-450.0,0.00013698,2]
[361423655,1747563039267,-450.0,0.00013698,2]
[361423657,1747563039276,-450.0,0.00013698,2]
[361423660,1747563039286,-178.83160997,0.00013698,2]
[361423661,1747563039296,-450.0,0.00013698,2]
[361423663,1747563039305,-469.97,0.00013698,2]
[361423665,1747563039314,-450.0,0.00013698,2]
[361423667,1747563039324,-450.0,0.00013698,2]
[361423669,1747563039332,-421.80671604,0.00013698,2]
[361423671,1747563039342,-400.0,0.00013698,2]
[361423674,1747563039351,-450.0,0.00013698,2]
[361423675,1747563039360,-450.0,0.00013698,2]
[361423677,1747563039370,-450.0,0.00013698,2]
[361423679,1747563039379,-450.0,0.00013698,2]
[361423681,1747563039389,-450.0,0.00013698,2]
[361423683,1747563039398,-400.0,0.00013698,2]
[361423685,1747563039407,-450.0,0.00013698,2]
[361423687,1747563039417,-450.0,0.00013698,2]
[361423689,1747563039427,-450.0,0.00013698,2]
[361423691,1747563039436,-450.0,0.00013698,2]
[361423693,1747563039445,-402.82879292,0.00013698,2]
[361423695,1747563039455,-450.0,0.00013698,2]
[361423697,1747563039464,-450.0,0.00013698,2]
[361423699,1747563039474,-450.0,0.00013698,2]
[361423701,1747563039483,-450.0,0.00013698,2]
[361423703,1747563039492,-450.0,0.00013698,2]
[361423705,1747563039501,-450.0,0.00013698,2]
[361423707,1747563039511,-450.0,0.00013698,2]
[361423709,1747563039521,-200.0,0.00013698,2]
[361423711,1747563039530,-450.0,0.00013698,2]
[361423713,1747563039540,-450.0,0.00013698,2]
[361423715,1747563039552,-450.0,0.00013698,2]
[361423717,1747563039562,-450.0,0.00013698,2]
[361423719,1747563039571,-450.0,0.00013698,2]
[361423721,1747563039580,-450.0,0.00013698,2]
[361423723,1747563039590,-450.0,0.00013698,2]
[361423725,1747563039599,-400.0,0.00013698,2]
[361423727,1747563039608,-450.0,0.00013698,2]
[361423729,1747563039619,-400.0,0.00013698,2]
[361423731,1747563039628,-450.0,0.00013698,2]
[361423733,1747563039637,-400.0,0.00013698,2]
[361423735,1747563039648,-450.0,0.00013698,2]
[361423737,1747563039657,-450.0,0.00013698,2]
[361423739,1747563039666,-400.0,0.00013698,2]
[361423741,1747563039676,-243.78682931,0.00013698,2]
[361423743,1747563039686,-450.0,0.00013698,2]
[361423745,1747563039695,-450.0,0.00013698,2]
[361423747,1747563039704,-450.0,0.00013698,2]
[361423749,1747563039714,-450.0,0.00013698,2]
[361423751,1747563039723,-450.0,0.00013698,2]
[361423753,1747563039732,-450.0,0.00013698,2]
[361423755,1747563039741,-450.0,0.00013698,2]
[361423757,1747563039750,-414.06937325,0.00013698,2]
[361423759,1747563039759,-410.68630758,0.00013698,2]
[361423761,1747563039768,-450.0,0.00013698,2]
[361423763,1747563039777,-400.0,0.00013698,2]
[361423765,1747563039787,-450.0,0.00013698,2]
[361423767,1747563039795,-557.53,0.00013698,2]
[361423768,1747563039804,-408.86864681,0.00013698,2]
[361423769,1747563039813,-508.02870925,0.00013698,2]
[361423771,1747563039823,-450.0,0.00013698,2]
[361423773,1747563039832,-450.0,0.00013698,2]
[361423775,1747563039841,-450.0,0.00013698,2]
[361423777,1747563039850,-400.0,0.00013698,2]
[361423779,1747563039859,-413.82117829,0.00013698,2]
[361423781,1747563039869,-412.74734466,0.00013698,2]
[361423782,1747563039879,-450.0,0.00013698,2]
[361423783,1747563039888,-450.0,0.00013698,2]
[361423784,1747563039898,-506.76845898,0.00013698,2]
[361423785,1747563039909,-510.99040569,0.00013698,2]
[361423786,1747563039918,-450.0,0.00013698,2]
[361423787,1747563039928,-450.0,0.00013698,2]
[361423788,1747563039938,-450.0,0.00013698,2]
[361423789,1747563039947,-401.07290512,0.00013698,2]
[361423790,1747563039957,-400.0,0.00013698,2]
[361423791,1747563039966,-450.0,0.00013698,2]
[361423792,1747563039975,-450.0,0.00013698,2]
[361423793,1747563039985,-400.0,0.00013698,2]
[361423794,1747563039994,-450.0,0.00013698,2]
[361423795,1747563040003,-450.0,0.00013698,2]
[361423797,1747563040013,-455.58180134,0.00013698,2]
[361423799,1747563040022,-450.0,0.00013698,2]
[361423801,1747563040032,-403.54975009,0.00013698,2]
[361423803,1747563040041,-403.55035648,0.00013698,2]
[361423806,1747563040050,-450.0,0.00013698,2]
[361423808,1747563040059,-400.0,0.00013698,2]
[361423809,1747563040068,-456.50209626,0.00013698,2]
[361423811,1747563040077,-450.0,0.00013698,2]
[361423814,1747563040086,-411.121553,0.00013698,2]
[361423818,1747563040096,-450.0,0.00013698,2]
[361423820,1747563040106,-450.0,0.00013698,2]
[361423823,1747563040115,-411.35748218,0.00013698,2]
[361423826,1747563040124,-450.0,0.00013698,2]
[361423829,1747563040133,-450.0,0.00013698,2]
[361423832,1747563040143,-400.0,0.00013698,2]
[361423835,1747563040154,-450.0,0.00013698,2]
[361423838,1747563040163,-450.0,0.00013698,2]
[361423841,1747563040172,-400.0,0.00013698,2]
[361423843,1747563040182,-450.0,0.00013698,2]
[361423846,1747563040191,-450.0,0.00013698,2]
[361423849,1747563040200,-450.0,0.00013698,2]
[361423852,1747563040209,-450.0,0.00013698,2]
[361423855,1747563040219,-450.0,0.00013698,2]
[361423858,1747563040227,-450.0,0.00013698,2]
[361423860,1747563040236,-450.0,0.00013698,2]
[361423862,1747563040246,-450.0,0.00013698,2]
[361423864,1747563040255,-450.0,0.00013698,2]
[361423866,1747563040264,-450.0,0.00013698,2]
[361423869,1747563040274,-450.0,0.00013698,2]
[361423872,1747563040283,-450.0,0.00013698,2]
[361423875,1747563040292,-450.0,0.00013698,2]
[361423877,1747563040302,-450.0,0.00013698,2]
[361423878,1747563040312,-400.0,0.00013698,2]
[361423880,1747563040321,-450.0,0.00013698,2]
[361423881,1747563040330,-450.0,0.00013698,2]
[361423883,1747563040340,-450.0,0.00013698,2]
[361423885,1747563040349,-450.0,0.00013698,2]
[361423886,1747563040359,-450.0,0.00013698,2]
[361423887,1747563040369,-450.0,0.00013698,2]
[361423889,1747563040378,-450.0,0.00013698,2]
[361423890,1747563040387,-450.0,0.00013698,2]
[361423892,1747563040396,-400.0,0.00013698,2]
[361423893,1747563040405,-450.0,0.00013698,2]
[361423895,1747563040415,-400.0,0.00013698,2]
[361423896,1747563040424,-450.0,0.00013698,2]
[361423898,1747563040433,-529.92776016,0.00013698,2]
[361423899,1747563040442,-450.0,0.00013698,2]
[361423901,1747563040451,-400.0,0.00013698,2]
[361423903,1747563040462,-400.73707092,0.00013698,2]
[361423904,1747563040471,-507.61,0.00013698,2]
[361423906,1747563040480,-450.0,0.00013698,2]
[361423907,1747563040489,-450.0,0.00013698,2]
[361423909,1747563040498,-450.0,0.00013698,2]
[361423911,1747563040508,-256.62616076,0.00013698,2]
[361423912,1747563040517,-450.0,0.00013698,2]
[361423914,1747563040526,-450.0,0.00013698,2]
[361423916,1747563040535,-450.0,0.00013698,2]